Cogmind - Beta 14 @@@ ROGUE MODE // 2024.11.26 @ 15:19:03 Player: MarKhan Result: Destroyed by G-67 Veteran with Plasma Rifle Performance ------------- Evolutions (6) 3000 Regions Visited (9) 1800 Robots Destroyed (0) 0 Value Destroyed (0) 0 Prototype IDs (0) 0 Alien Tech Used (0) 0 Bonus (2555) 2555 TOTAL SCORE: 7355 Bonus ------- Pacifist 2218 Follower Combat Kills 37 Registered with UFD 300 Cogmind --------- Core Integrity 0/1150 Matter 155/300 Energy 99/100 System Corruption 0% Temperature Cool (0) Movement Core (50) Location -4/Factory Parts ------- > --- POWER (1) -------- (None) > --- PROPULSION (2) --- (None) > --- UTILITY (2) ------ (None) > --- WEAPON (14) ------ (None) > --- INVENTORY (5) ---- (None) Peak State ------------ None Favorites ----------- Power None Propulsion None Utility None Weapon None Build | -11 -10 -9 -8 -7 -7 -7 -7 -5 -4 ------- Run | Yrd Mat Mat Mat Fac Sto Rec Scr Fac Fac Slots Evolved 12 | . . 2 2 2 . . . 4 2 Power . | . . . . . . . . . . Propulsion . | . . . . . . . . . . Utility . | . . . . . . . . . . Weapon 12 | . . 2 2 2 . . . 4 2 Parts Attached . | . . . . . . . . . . Power . | . . . . . . . . . . Engine . | . . . . . . . . . . Core . | . . . . . . . . . . Reactor . | . . . . . . . . . . Propulsion . | . . . . . . . . . . Treads . | . . . . . . . . . . Leg . | . . . . . . . . . . Wheel . | . . . . . . . . . . Hover . | . . . . . . . . . . Flight . | . . . . . . . . . . Utility . | . . . . . . . . . . Device . | . . . . . . . . . . Storage . | . . . . . . . . . . Processor . | . . . . . . . . . . Hackware . | . . . . . . . . . . Protection . | . . . . . . . . . . Artifact . | . . . . . . . . . . Weapon . | . . . . . . . . . . Energy Gun . | . . . . . . . . . . Energy Cannon . | . . . . . . . . . . Ballistic Gun . | . . . . . . . . . . Ballistic Cannon . | . . . . . . . . . . Launcher . | . . . . . . . . . . Special Weapon . | . . . . . . . . . . Impact Weapon . | . . . . . . . . . . Slashing Weapon . | . . . . . . . . . . Piercing Weapon . | . . . . . . . . . . Special Melee Weapon . | . . . . . . . . . . Unidentified Prototypes . | . . . . . . . . . . Parts Lost . | . . . . . . . . . . Power . | . . . . . . . . . . Propulsion . | . . . . . . . . . . Utility . | . . . . . . . . . . Weapon . | . . . . . . . . . . Highest Loss Streak . | . . . . . . . . . . To Critical Strikes . | . . . . . . . . . . Average Slot Usage (%) . | . . . . . . . . . . Peak Build Rating . | . . . . . . . . . . Average Rating . | . . . . . . . . . . On Entrance . | . . . . . . . . . . Naked Turns 2513 | . 26 93 113 252 36 976 593 195 229 Heaviest Build . | . . . . . . . . . . Greatest Support 3 | 3 3 3 3 3 3 3 3 3 3 Greatest Overweight (x) . | . . . . . . . . . . Average Overweight (x) . | . . . . . . . . . . Largest Inventory Capacity 5 | 5 5 5 5 5 5 5 5 5 5 Average Capacity 5 | 5 5 5 5 5 5 5 5 5 5 Most Carried . | . . . . . . . . . . Average Carried . | . . . . . . . . . . Final Capacity 5 | 5 5 5 5 5 5 5 5 5 5 Final Carried . | . . . . . . . . . . Class Distribution -------------------- 100% | Mutant Dominant Class ---------------- Mutant | -10/Materials Mutant | -9/Materials Mutant | -8/Materials Mutant | -7/Factory Mutant | -7/Storage Mutant | -7/Recycling Mutant | -7/Scraptown Mutant | -5/Factory Mutant | -4/Factory Resources | -11 -10 -9 -8 -7 -7 -7 -7 -5 -4 ----------- Run | Yrd Mat Mat Mat Fac Sto Rec Scr Fac Fac Matter Collected 8 | . . . . 8 . . . . . Remotely . | . . . . . . . . . . Salvage Created . | . . . . . . . . . . Parts . | . . . . . . . . . . Haulers Intercepted . | . . . . . . . . . . Recyclers Shooed . | . . . . . . . . . . Parts Field Recycled . | . . . . . . . . . . Retrieved Matter . | . . . . . . . . . . Parts Self-Destructed . | . . . . . . . . . . Prevented . | . . . . . . . . . . Kills | -11 -10 -9 -8 -7 -7 -7 -7 -5 -4 ------- Run | Yrd Mat Mat Mat Fac Sto Rec Scr Fac Fac Combat Hostiles Destroyed . | . . . . . . . . . . Classes Destroyed . | . . . . . . . . . . Best Kill Streak . | . . . . . . . . . . Combat Bots Only . | . . . . . . . . . . Max Kills in Single Turn . | . . . . . . . . . . Gunslinging . | . . . . . . . . . . Exploded . | . . . . . . . . . . Melee . | . . . . . . . . . . Uniques/NPCs Destroyed . | . . . . . . . . . . Combat | -11 -10 -9 -8 -7 -7 -7 -7 -5 -4 -------- Run | Yrd Mat Mat Mat Fac Sto Rec Scr Fac Fac Hostile Shots Fired 218 | . 7 22 38 18 9 9 . 19 96 Missed 77 | . 3 5 14 5 5 3 . 4 38 Damage Taken 2665 | . 63 252 341 320 41 49 . 432 1167 Core 2665 | . 63 252 341 320 41 49 . 432 1167 Absorbed by Shields . | . . . . . . . . . . Core Remaining (%) 57 | 100 74 37 38 . . . 41 56 . Volleys Fired . | . . . . . . . . . . Largest . | . . . . . . . . . . Hottest . | . . . . . . . . . . Shots Fired . | . . . . . . . . . . Gun . | . . . . . . . . . . Cannon . | . . . . . . . . . . Launcher . | . . . . . . . . . . Special . | . . . . . . . . . . Kinetic . | . . . . . . . . . . Thermal . | . . . . . . . . . . Explosive . | . . . . . . . . . . Electromagnetic . | . . . . . . . . . . Robot Hit Streak . | . . . . . . . . . . Robot Miss Streak . | . . . . . . . . . . Penetration Max . | . . . . . . . . . . Secondary Targets . | . . . . . . . . . . Shots Hit Robots . | . . . . . . . . . . Core Hits 2 | . . . . 1 . . . . 1 Critical Kills . | . . . . . . . . . . Critical Parts Destroyed . | . . . . . . . . . . Critical Strikes . | . . . . . . . . . . Melee Attacks . | . . . . . . . . . . Impact . | . . . . . . . . . . Slashing . | . . . . . . . . . . Piercing . | . . . . . . . . . . Sneak Attacks . | . . . . . . . . . . Combat Hostiles . | . . . . . . . . . . Follow-up Attacks . | . . . . . . . . . . Damage Inflicted 52 | . . 9 . 30 . . . . 13 Guns . | . . . . . . . . . . Cannons . | . . . . . . . . . . Explosions . | . . . . . . . . . . Melee . | . . . . . . . . . . Ramming 52 | . . 9 . 30 . . . . 13 Kinetic . | . . . . . . . . . . Thermal . | . . . . . . . . . . Explosive . | . . . . . . . . . . Electromagnetic . | . . . . . . . . . . Impact . | . . . . . . . . . . Slashing . | . . . . . . . . . . Piercing . | . . . . . . . . . . Highest Corruption 7 | . . . . . . . . 7 . Average Corruption 3 | . . . . . . . . 3 . Corruption Purged . | . . . . . . . . . . Corruption Blocked . | . . . . . . . . . . Overload Shots . | . . . . . . . . . . Overflow Damage . | . . . . . . . . . . Projectiles . | . . . . . . . . . . Explosions . | . . . . . . . . . . Melee . | . . . . . . . . . . Knockbacks 1 | . . . . 1 . . . . . Impact 1 | . . . . 1 . . . . . Kinetic . | . . . . . . . . . . Secondary . | . . . . . . . . . . Self-Inflicted Damage 23 | . . 4 . 13 . . . . 6 Shots . | . . . . . . . . . . Rammed 14 | . . 1 . 9 . . . . 4 Targets Rammed 14 | . . 1 . 9 . . . . 4 Kicked . | . . . . . . . . . . Crushed . | . . . . . . . . . . Highest Temperature . | . . . . . . . . . . Average Temperature . | . . . . . . . . . . Received Heat Transfer 732 | . 33 78 63 27 18 18 . 171 324 Siege Activations . | . . . . . . . . . . Robots Corrupted . | . . . . . . . . . . Combat Hostiles . | . . . . . . . . . . Parts Fried . | . . . . . . . . . . Impact Corruptions . | . . . . . . . . . . Robots Melted . | . . . . . . . . . . Combat Hostiles . | . . . . . . . . . . Parts Melted . | . . . . . . . . . . Heat Transferred . | . . . . . . . . . . Parts Sabotaged . | . . . . . . . . . . Parts Stolen . | . . . . . . . . . . Parts Stripped . | . . . . . . . . . . Power Chain Reactions . | . . . . . . . . . . Alert | -11 -10 -9 -8 -7 -7 -7 -7 -5 -4 ------- Run | Yrd Mat Mat Mat Fac Sto Rec Scr Fac Fac Peak Influence 213 | . 15 65 167 195 140 104 . 99 213 Initial 88 | . . 5 27 75 88 54 . . 48 Average 63 | . 3 24 105 117 111 34 . 50 133 Maximum Alert Level 1 | . . . . . . . . . 1 Low Security (%) 98 | 100 100 100 100 100 100 100 . 100 91 Level 1 1 | . . . . . . . . . 8 Level 2 . | . . . . . . . . . . Level 3 . | . . . . . . . . . . Level 4 . | . . . . . . . . . . Level 5 . | . . . . . . . . . . High Security . | . . . . . . . . . . Max Security . | . . . . . . . . . . Squads Dispatched 9 | . . 1 1 1 1 . . 1 4 Investigation 6 | . . 1 . 1 . . . 1 3 Extermination . | . . . . . . . . . . Reinforcement 3 | . . . 1 . 1 . . . 1 Assault . | . . . . . . . . . . Garrison . | . . . . . . . . . . Intercept . | . . . . . . . . . . Searches Triggered . | . . . . . . . . . . Construction Impeded . | . . . . . . . . . . Haulers Reinforced . | . . . . . . . . . . Active Scanning Responses . | . . . . . . . . . . Cargo Convoy Interrupts . | . . . . . . . . . . Stealth | -11 -10 -9 -8 -7 -7 -7 -7 -5 -4 --------- Run | Yrd Mat Mat Mat Fac Sto Rec Scr Fac Fac Distress Signals 4 | . . . . 2 . . . . 2 Communications Jammed . | . . . . . . . . . . Distress Signals . | . . . . . . . . . . Times Spotted 68 | . 4 5 10 13 3 1 . 12 20 Peak Tracking Total 14 | . 4 6 5 6 4 1 . 8 14 Tactical Retreats 9 | . . . 2 1 . 1 . 1 4 Traps | -11 -10 -9 -8 -7 -7 -7 -7 -5 -4 ------- Run | Yrd Mat Mat Mat Fac Sto Rec Scr Fac Fac Traps Triggered 5 | . . 1 . 1 . . . 2 1 Indirectly . | . . . . . . . . . . Trap Hack Attempts . | . . . . . . . . . . Triggered . | . . . . . . . . . . Disarmed 4 | . . . . . . . . 4 . Reprogrammed . | . . . . . . . . . . Reused . | . . . . . . . . . . Traps Extracted . | . . . . . . . . . . Installed . | . . . . . . . . . . Triggered . | . . . . . . . . . . Machines | -11 -10 -9 -8 -7 -7 -7 -7 -5 -4 ---------- Run | Yrd Mat Mat Mat Fac Sto Rec Scr Fac Fac Machines Disabled . | . . . . . . . . . . Max in Single Turn . | . . . . . . . . . . Garrison Access 2 | . . . . 1 . . . 1 . Machines Repaired . | . . . . . . . . . . Machines Dismantled . | . . . . . . . . . . Machines Sabotaged . | . . . . . . . . . . Overloaded Fab Kills . | . . . . . . . . . . Hacking | -11 -10 -9 -8 -7 -7 -7 -7 -5 -4 --------- Run | Yrd Mat Mat Mat Fac Sto Rec Scr Fac Fac Machines Accessed 29 | . . . 1 2 1 6 8 5 6 Terminals 17 | . . . 1 1 1 6 . 4 4 Fabricators . | . . . . . . . . . . Repair Stations . | . . . . . . . . . . Recycling Units 2 | . . . . . . . . . 2 Scanalyzers . | . . . . . . . . . . Garrison Access 2 | . . . . 1 . . . 1 . Total Hacks 100 | . . . 3 3 2 11 47 18 16 Successful 71 | . . . 1 1 1 7 47 7 7 Failed 29 | . . . 2 2 1 4 . 11 9 Catastrophic 5 | . . . . 1 . 2 . 1 1 Database Lockouts . | . . . . . . . . . . Manual 37 | . . . . . . 10 1 13 13 Terminals 46 | . . . 3 2 2 11 . 16 12 Fabricators . | . . . . . . . . . . Repair Stations . | . . . . . . . . . . Recycling Units 4 | . . . . . . . . . 4 Scanalyzers . | . . . . . . . . . . Garrison Access 3 | . . . . 1 . . . 2 . Terminal Hacks 52 | . . . 1 . 1 . 47 2 1 Record 42 | . . . . . . . 42 . . Robot Analysis 5 | . . . . . . . 5 . . Open Door 1 | . . . . . 1 . . . . Disarm Traps 1 | . . . . . . . . 1 . Zone Layout 3 | . . . 1 . . . . 1 1 Fabricator Hacks . | . . . . . . . . . . Repair Station Hacks . | . . . . . . . . . . Recycling Unit Hacks . | . . . . . . . . . . Scanalyzer . | . . . . . . . . . . Garrison Access Hacks 2 | . . . . 1 . . . 1 . Seal Access 2 | . . . . 1 . . . 1 . Unauthorized Hacks 17 | . . . . . . 7 . 4 6 Terminals 15 | . . . . . . 7 . 4 4 Botnet 5 | . . . . . . 2 . 2 1 Skim 10 | . . . . . . 5 . 2 3 Fabricators . | . . . . . . . . . . Repair Stations 2 | . . . . . . . . . 2 Recycling Units . | . . . . . . . . . . Fedlink 2 | . . . . . . . . . 2 Scanalyzers . | . . . . . . . . . . Garrison Access . | . . . . . . . . . . Data Cores Recovered . | . . . . . . . . . . Used . | . . . . . . . . . . Hacking Detections 14 | . . . . 1 . 4 . 5 4 Full Trace Events 2 | . . . . . . 1 . 1 . Feedback Events . | . . . . . . . . . . Feedback Blocked . | . . . . . . . . . . Robot Schematics Acquired . | . . . . . . . . . . Robots Built . | . . . . . . . . . . Authchips . | . . . . . . . . . . Time . | . . . . . . . . . . Total Robot Build Rating . | . . . . . . . . . . Part Schematics Acquired . | . . . . . . . . . . Parts Built . | . . . . . . . . . . Authchips . | . . . . . . . . . . Time . | . . . . . . . . . . Total Part Build Rating . | . . . . . . . . . . Parts Repaired . | . . . . . . . . . . Time . | . . . . . . . . . . Parts Recycled . | . . . . . . . . . . Recycled Matter . | . . . . . . . . . . Retrieved Matter . | . . . . . . . . . . Retrieved Components . | . . . . . . . . . . Parts Scanalyzed . | . . . . . . . . . . Part Schematics Acquired . | . . . . . . . . . . Parts Damaged . | . . . . . . . . . . Bothacking | -11 -10 -9 -8 -7 -7 -7 -7 -5 -4 ------------ Run | Yrd Mat Mat Mat Fac Sto Rec Scr Fac Fac Used RIF Installer . | . . . . . . . . . . Robots Hacked . | . . . . . . . . . . Non-combat . | . . . . . . . . . . Combat . | . . . . . . . . . . Robot Hacks Applied . | . . . . . . . . . . Relay Couplers Released . | . . . . . . . . . . Fabnet Peak Effective % . | . . . . . . . . . . Robots Rewired 1 | . . . . . . . . 1 . Allies Hacked . | . . . . . . . . . . Hacks Repelled . | . . . . . . . . . . Allies | -11 -10 -9 -8 -7 -7 -7 -7 -5 -4 -------- Run | Yrd Mat Mat Mat Fac Sto Rec Scr Fac Fac Total Allies 1 | . . . . . . . . 1 . Largest Group 1 | . . . . . . . . 1 . Highest-Rated Group 49 | . . . . . . . . 49 . Highest-Rated Ally 49 | . . . . . . . . 49 . Total Orders . | . . . . . . . . . . Ally Attacks 4 | . . . . . . . . 4 . Total Damage 620 | . . . . . . . . 620 . Kills 1 | . . . . . . . . 1 . Allies Corrupted . | . . . . . . . . . . Allies Melted . | . . . . . . . . . . Intel | -11 -10 -9 -8 -7 -7 -7 -7 -5 -4 ------- Run | Yrd Mat Mat Mat Fac Sto Rec Scr Fac Fac Robot Analysis Total 5 | . . . . . . . 5 . . Derelict Logs Recovered . | . . . . . . . . . . Drone Launches . | . . . . . . . . . . Drone Recoveries . | . . . . . . . . . . Exploration | -11 -10 -9 -8 -7 -7 -7 -7 -5 -4 ------------- Run | Yrd Mat Mat Mat Fac Sto Rec Scr Fac Fac Turns Passed 2522 | 9 26 93 113 252 36 976 593 195 229 Spaces Moved 4278 | 18 52 184 225 466 71 1329 1185 317 431 Core 4278 | 18 52 184 225 466 71 1329 1185 317 431 Treads . | . . . . . . . . . . Legs . | . . . . . . . . . . Wheels . | . . . . . . . . . . Hover . | . . . . . . . . . . Flight . | . . . . . . . . . . Fastest Speed 50 | 50 50 50 50 50 50 50 50 50 50 Average Speed 50 | 50 50 50 50 50 50 50 50 50 50 Slowest Speed 50 | 50 50 50 50 50 50 50 50 50 50 Overloaded Moves . | . . . . . . . . . . Propulsion Burnouts . | . . . . . . . . . . Robots Hopped . | . . . . . . . . . . Cave-ins Triggered . | . . . . . . . . . . Exploration Rate (%) 33 | 4 14 21 40 19 25 99 81 12 19 Regions Visited 9 Branch Regions 3 Pre-discovered Areas . | . . . . . . . . . . Known Exits Taken 1 | . . . . . . 1 . . . Unknown Exits Taken 8 | 1 1 1 1 1 1 . 1 1 . Scrap Searched . | . . . . . . . . . . Spaces Dug . | . . . . . . . . . . Terrain Destroyed . | . . . . . . . . . . Melee . | . . . . . . . . . . Projectile . | . . . . . . . . . . AOE . | . . . . . . . . . . Terrain Rammed . | . . . . . . . . . . Walls Destroyed . | . . . . . . . . . . Machines Disabled . | . . . . . . . . . . Actions | -11 -10 -9 -8 -7 -7 -7 -7 -5 -4 --------- Run | Yrd Mat Mat Mat Fac Sto Rec Scr Fac Fac Total 4649 | 17 51 184 224 484 70 1639 1184 352 444 Wait 359 | . . . . 10 . 311 . 29 9 Move 4269 | 17 51 183 224 465 70 1328 1184 316 431 Hop . | . . . . . . . . . . Pick Up . | . . . . . . . . . . Fast Attach . | . . . . . . . . . . Attach . | . . . . . . . . . . Detach . | . . . . . . . . . . Swap . | . . . . . . . . . . Drop . | . . . . . . . . . . Fire . | . . . . . . . . . . Melee . | . . . . . . . . . . Ram 14 | . . 1 . 9 . . . . 4 Kick . | . . . . . . . . . . Crush . | . . . . . . . . . . Escape Stasis . | . . . . . . . . . . Rewire 7 | . . . . . . . . 7 . Trap . | . . . . . . . . . . Miscellaneous . | . . . . . . . . . . Route ------- -11/Scrapyard -10/Materials -9/Materials -8/Materials -7/Factory -7/Storage -7/Recycling (discovered 2 exits: *Fac / *Scr) -7/Scraptown -5/Factory -4/Factory History --------- Turn | Location | Event 4 | -11/Scrapyard | Discovered new exit (range 13) 10 | -11/Scrapyard | Entered Materials 32 | -10/Materials | Discovered new exit (range 9) 36 | -10/Materials | Entered another Materials area 36 | -9/Materials | Evolved 2 slots: Weapon x2 87 | -9/Materials | Core integrity fell below 50% 122 | -9/Materials | Discovered new exit (range 15) 129 | -9/Materials | Entered another Materials area 129 | -8/Materials | Evolved 2 slots: Weapon x2 207 | -8/Materials | Core integrity fell below 50% 235 | -8/Materials | Discovered new exit (range 13) 242 | -8/Materials | Entered Factory 242 | -7/Factory | Evolved 2 slots: Weapon x2 305 | -7/Factory | Build established: Mutant 487 | -7/Factory | Discovered new exit (range 14) 494 | -7/Factory | Entered Storage 515 | -7/Storage | Core integrity fell below 50% 526 | -7/Storage | Discovered new exit (range 7) 530 | -7/Storage | Entered Recycling 646 | -7/Recycling | Discovered new exit (range 15) 1211 | -7/Recycling | Learned Extension security intel 1251 | -7/Recycling | Learned location of 1 exit from Cetus 1279 | -7/Recycling | Learned location of 1 exit from Hub_04(d) 1298 | -7/Recycling | Learned Extension stockpile data 1305 | -7/Recycling | Learned location of 2 exits from Archives 1306 | -7/Recycling | Learned Factory stockpile data 1311 | -7/Recycling | Learned location of 1 exit from Hub_04(d) 1328 | -7/Recycling | Learned location of 1 exit from Lower Caves 1357 | -7/Recycling | Learned Extension security intel 1397 | -7/Recycling | Identified exit to Scraptown 1493 | -7/Recycling | Scanned before Scraplab entrance 1500 | -7/Recycling | Entered Scraplab 1506 | -7/Recycling | Entered Scraptown 1528 | -7/Scraptown | Visited SPCMW 1539 | -7/Scraptown | Visited Cave Peace 1564 | -7/Scraptown | Visited UFD Registry 1564 | -7/Scraptown | Registered with UFD as "Steelmech" 1568 | -7/Scraptown | Visited Cyclists 1572 | -7/Scraptown | Entered Cyclist Reading Room 1604 | -7/Scraptown | Visited LU-1G1's Boring Crew 1612 | -7/Scraptown | Visited Chapter 10 1651 | -7/Scraptown | Visited Derelict Rescue Squad 1662 | -7/Scraptown | Visited Research Penetration Think Tank 1706 | -7/Scraptown | Visited Analyses Database 1730 | -7/Scraptown | Visited Abandonware Association 1736 | -7/Scraptown | Learned abandonware demo "OVRCLOCK.EXE" 1740 | -7/Scraptown | Learned abandonware demo "HACKBUD.EXE" 1762 | -7/Scraptown | Discovered new exit (range 5) 1800 | -7/Scraptown | Visited DA-N13 Charitable Foundation 1810 | -7/Scraptown | Visited Junk Repository 1819 | -7/Scraptown | Visited Botcube Research 1991 | -7/Scraptown | Visited Red Mages 2016 | -7/Scraptown | Visited Comm Corps 2032 | -7/Scraptown | Visited The Evicted 2099 | -7/Scraptown | Entered Factory 2099 | -5/Factory | Evolved 4 slots: Weapon x4 2290 | -5/Factory | Discovered new exit (range 8) 2294 | -5/Factory | Entered another Factory area 2294 | -4/Factory | Evolved 2 slots: Weapon x2 2495 | -4/Factory | Core integrity fell below 50% 2515 | -4/Factory | Core integrity fell below 20% 2523 | -4/Factory | Destroyed by G-67 Veteran with Plasma Rifle Last Messages --------------- UFD!MEMBER UFD!NETWORK<291> UFD!RESOURCES<48> UFD!SANITIZING UFD!... 02435_ ALERT: Suspicious activity at Recycling Unit F005. Dispatching Investigation squad. 02438_ Connecting with Recycling Unit... >>Force(Fedlink) UFD!MEMBER UFD!NETWORK<994> UFD!RESOURCES<52> UFD!SANITIZING UFD!... 02438_ ALERT: Suspicious activity at Recycling Unit F006. Dispatching Investigation squad. 02482_ Slammed into G-67 Veteran. 02489_ ALERT: Security rotation in progress. 02494_ Slammed into G-73 Enforcer. 02503_ W-44 Eye sends out distress signal. Map ----- +----------------------------------------------------+ | ????????####### ! [ #???????# | | ????????# # #???????# | | ????????#] # ! #???????# | | ????????# + =#???????# | | ????????# # #???????# | | ????????# # !#???????# | | ########### ##########???????? | | # #??# #????????????????? | | ? """ #### #????????????????? | | ? """ # #????????????????? | | # "S # ##????????????????# | | # """ # #?????????????????? | | # "" # #???????????????? # | | # + #??????????????? # | | # """ # #????????????""" # | | # """ # #?????????? # | | # """ # #????????""""""" # | | # "" # #?????? """"""" # | | # ! "" # #??????? """"""" # | | # # #?????????"""""" # | | # # g #??????????? ?? | | #####+## w##############+#### | | ????# | | ????# ggg | | ????# | | ????#@####/##############+#### | | ????# g #????? ?? | | ????# g #??? | | ????# l #?# """""" | | ????# = #?# """""" | | ????# ! #?# """""" | | ????# !#?# """""" | | ????# ! #?# ?? | | ????# ! #?# ?????? | | ????# #?# ??????? | | ????# #?# ??????? | | ????# #?# ???????? | | ????# #???????????? | | ????##############???????????? | | ?????????????????????????????? | | ?????????????????????????????? | | ?????????????????????????????? | | ?????????????????????????????? | | ?????????????????????????????? | | ?????????????????????????????? | | | | | | | | | | | +----------------------------------------------------+ Best States ------------- Heat Dissipation 43 Energy Generation 5 Energy Capacity 100 Matter Stores 155 Matter Capacity 300 Sight Range 16 Terrain Scan Density 10 Evasion (%) 50 Item Schematics ----------------- None Robot Schematics ------------------ None Fabricated ------------ Nothing Alien Tech Used ----------------- None Achievements -------------- None Challenges ------------ None Game ------ Seed ChipMeleeWheel Manual? 0 Play Time 00:42:10 Cumulative 144.6 hours Start 2024.11.26 @ 14:39:44 End 2024.11.26 @ 15:19:03 Sessions 1 Manual Loads 0 Difficulty Rogue Special Mode None Game No. 139 Rogue 139 Adventurer 0 Explorer 0 Win Type - Total 3 Types 3/0/0/0/0/0/0/0/0 Lore% 57 Gallery% 58 Achievement% 55 Wizard Run 0 Options --------- Layout 1 ASCII 0 Keyboard 1 Movement Arrows Keybinds 0 Fullscreen 0 Font 20/Smallcaps Map View 50x35 Zoom Use 0% Tactical HUD 1 Map Filters NONE Filters NONE Steam 1 RUN: 7dc686ab-d528-4b2f-8309-c484dbc14fb0